[Event "Betsys MČR v online bleskovém šachu 2021"]
[Site "Chess.com"]
[Date "2021.04.17"]
[Round "5"]
[White "feela1"]
[Black "matycz07"]
[Result "0-1"]
[WhiteElo "1396"]
[BlackElo "1013"]
[TimeControl "180+1"]
[EndTime "9:47:57 PDT"]
[Termination "Uživatel matycz07 zvítězil na čas"]

1. e4 {[%clk 0:03:00.9]} 1... e5 {[%clk 0:02:59.4]} 2. Nf3 {[%clk 0:02:59.8]}
2... Nc6 {[%clk 0:02:59.2]} 3. Bc4 {[%clk 0:02:58.6]} 3... Nf6 {[%clk
0:02:59.1]} 4. Nc3 {[%clk 0:02:50]} 4... Bc5 {[%clk 0:02:57.9]} 5. O-O {[%clk
0:02:48.1]} 5... d6 {[%clk 0:02:55.5]} 6. h3 {[%clk 0:02:47.7]} 6... Be6 {[%clk
0:02:55.1]} 7. Bxe6 {[%clk 0:02:45.9]} 7... fxe6 {[%clk 0:02:55.3]} 8. d3 {[%clk
0:02:44.5]} 8... Nd4 {[%clk 0:02:48.8]} 9. Bg5 {[%clk 0:02:39.1]} 9... Nxf3+
{[%clk 0:02:46.3]} 10. Qxf3 {[%clk 0:02:38.1]} 10... Qe7 {[%clk 0:02:24.6]} 11.
Na4 {[%clk 0:02:35.8]} 11... O-O-O {[%clk 0:02:16.3]} 12. Nxc5 {[%clk
0:02:33.9]} 12... dxc5 {[%clk 0:02:15.3]} 13. Qe3 {[%clk 0:02:28.5]} 13... h6
{[%clk 0:02:14.3]} 14. Bxf6 {[%clk 0:02:26.5]} 14... Qxf6 {[%clk 0:02:13.4]} 15.
Qxc5 {[%clk 0:02:24.6]} 15... g5 {[%clk 0:02:11.5]} 16. Qxa7 {[%clk 0:02:23.1]}
16... Kd7 {[%clk 0:02:09]} 17. Qa4+ {[%clk 0:02:14.2]} 17... c6 {[%clk
0:02:08.3]} 18. b3 {[%clk 0:02:10.4]} 18... Kc7 {[%clk 0:02:06]} 19. Qc4 {[%clk
0:01:59.9]} 19... h5 {[%clk 0:01:58.1]} 20. a4 {[%clk 0:01:58.8]} 20... g4
{[%clk 0:01:58.2]} 21. h4 {[%clk 0:01:54.7]} 21... Qxh4 {[%clk 0:01:52.5]} 22.
Rfe1 {[%clk 0:01:47.4]} 22... g3 {[%clk 0:01:52.3]} 23. f3 {[%clk 0:01:44.7]}
23... Qh2+ {[%clk 0:01:51.5]} 24. Kf1 {[%clk 0:01:43.5]} 24... Qh1+ {[%clk
0:01:50.1]} 25. Ke2 {[%clk 0:01:43]} 25... Qxg2+ {[%clk 0:01:50.1]} 26. Kd1
{[%clk 0:01:42.2]} 26... Qxf3+ {[%clk 0:01:49.2]} 27. Kc1 {[%clk 0:01:34.5]}
27... Rhg8 {[%clk 0:01:48.5]} 28. Kb2 {[%clk 0:01:31.6]} 28... g2 {[%clk
0:01:48.2]} 29. Rg1 {[%clk 0:01:30.9]} 29... h4 {[%clk 0:01:46.2]} 30. Qxe6
{[%clk 0:01:29.8]} 30... h3 {[%clk 0:01:43]} 31. Qxe5+ {[%clk 0:01:28.5]} 31...
Kb6 {[%clk 0:01:40.5]} 32. Qh2 {[%clk 0:01:27.2]} 32... Ka5 {[%clk 0:01:31.6]}
33. Qe5+ {[%clk 0:01:17.8]} 33... Kb6 {[%clk 0:01:28.6]} 34. Qh2 {[%clk
0:01:13.3]} 34... c5 {[%clk 0:01:27]} 35. Rae1 {[%clk 0:01:07]} 35... Rdf8
{[%clk 0:01:12.7]} 36. Qd6+ {[%clk 0:01:04.2]} 36... Ka7 {[%clk 0:01:11.9]} 37.
Qxc5+ {[%clk 0:01:03.2]} 37... Kb8 {[%clk 0:01:12]} 38. Qd6+ {[%clk 0:00:57]}
38... Ka8 {[%clk 0:01:11.9]} 39. Qc7 {[%clk 0:00:48]} 39... Qg3 {[%clk
0:01:03.8]} 40. Qxg3 {[%clk 0:00:45.8]} 40... Rxg3 {[%clk 0:01:03.1]} 41. e5
{[%clk 0:00:43.5]} 41... h2 {[%clk 0:01:03]} 42. Rxg2 {[%clk 0:00:41.5]} 42...
Rxg2 {[%clk 0:01:03.2]} 43. e6 {[%clk 0:00:39.8]} 43... Re8 {[%clk 0:01:02.9]}
44. d4 {[%clk 0:00:37.9]} 44... Rxe6 {[%clk 0:01:02.6]} 45. Rxe6 {[%clk
0:00:35.9]} 45... h1=Q {[%clk 0:01:02.3]} 46. d5 {[%clk 0:00:32.7]} 46... Qh5
{[%clk 0:00:56.2]} 47. d6 {[%clk 0:00:30.8]} 47... Qf5 {[%clk 0:00:55.7]} 48.
Re8+ {[%clk 0:00:20.9]} 48... Ka7 {[%clk 0:00:52.7]} 49. Re3 {[%clk 0:00:14.5]}
49... Qf6+ {[%clk 0:00:48.7]} 50. Ka2 {[%clk 0:00:12.9]} 50... Qxd6 {[%clk
0:00:48.6]} 51. Kb1 {[%clk 0:00:05.8]} 51... Qd1+ {[%clk 0:00:45.5]} 52. Ka2
{[%clk 0:00:03.2]} 52... Rxc2+ {[%clk 0:00:45.4]} 53. Ka3 {[%clk 0:00:01.3]}
53... Qd6+ {[%clk 0:00:41.7]} 0-1

[Event "Betsys MČR v online bleskovém šachu 2021"]
[Site "Chess.com"]
[Date "2021.04.17"]
[Round "5"]
[White "Diamantidis_13"]
[Black "FormerProdigy"]
[Result "0-1"]
[WhiteElo "2445"]
[BlackElo "2859"]
[TimeControl "180+1"]
[EndTime "9:48:00 PDT"]
[Termination "Uživatel FormerProdigy zvítězil na čas"]

1. Nf3 {[%clk 0:03:00.9]} 1... Nf6 {[%clk 0:02:58.8]} 2. c4 {[%clk 0:02:58.7]}
2... c5 {[%clk 0:02:57.7]} 3. g3 {[%clk 0:02:57.3]} 3... b6 {[%clk 0:02:56.4]}
4. Bg2 {[%clk 0:02:57.1]} 4... Bb7 {[%clk 0:02:56.7]} 5. O-O {[%clk 0:02:57]}
5... g6 {[%clk 0:02:56.4]} 6. b3 {[%clk 0:02:55]} 6... Bg7 {[%clk 0:02:56.3]} 7.
Bb2 {[%clk 0:02:55.5]} 7... O-O {[%clk 0:02:56.3]} 8. d4 {[%clk 0:02:53.1]} 8...
cxd4 {[%clk 0:02:54.5]} 9. Nxd4 {[%clk 0:02:53.1]} 9... Bxg2 {[%clk 0:02:53.8]}
10. Kxg2 {[%clk 0:02:54]} 10... d5 {[%clk 0:02:48.1]} 11. cxd5 {[%clk
0:02:53.8]} 11... Qxd5+ {[%clk 0:02:39.8]} 12. Nf3 {[%clk 0:02:53.7]} 12... Nc6
{[%clk 0:02:30.9]} 13. Qxd5 {[%clk 0:02:52.7]} 13... Nxd5 {[%clk 0:02:31.8]} 14.
Bxg7 {[%clk 0:02:52.8]} 14... Kxg7 {[%clk 0:02:32.7]} 15. Rc1 {[%clk 0:02:47.1]}
15... Rac8 {[%clk 0:02:30.5]} 16. Nc3 {[%clk 0:02:41.5]} 16... Ncb4 {[%clk
0:02:15.8]} 17. Nxd5 {[%clk 0:02:35.7]} 17... Nxd5 {[%clk 0:02:16.7]} 18. Nd4
{[%clk 0:01:52.3]} 18... Nc3 {[%clk 0:02:07.6]} 19. Rc2 {[%clk 0:01:43.7]} 19...
e5 {[%clk 0:01:32.7]} 20. Nf3 {[%clk 0:01:05.4]} 20... e4 {[%clk 0:01:32.5]} 21.
Nd4 {[%clk 0:00:58.5]} 21... Rfd8 {[%clk 0:01:25]} 22. e3 {[%clk 0:00:49.6]}
22... b5 {[%clk 0:00:54.5]} 23. a3 {[%clk 0:00:20.5]} 23... a5 {[%clk
0:00:52.2]} 24. b4 {[%clk 0:00:20.8]} 24... axb4 {[%clk 0:00:37.5]} 25. axb4
{[%clk 0:00:21.7]} 25... Nd5 {[%clk 0:00:31]} 26. Rxc8 {[%clk 0:00:21]} 26...
Rxc8 {[%clk 0:00:31.9]} 27. Nxb5 {[%clk 0:00:20.1]} 27... Rc2 {[%clk 0:00:30.7]}
28. Kg1 {[%clk 0:00:15.6]} 28... Nxb4 {[%clk 0:00:30.2]} 29. Nd4 {[%clk
0:00:15.7]} 29... Rb2 {[%clk 0:00:28.1]} 30. Rf1 {[%clk 0:00:13]} 30... Nd3
{[%clk 0:00:28.1]} 31. Kg2 {[%clk 0:00:12.8]} 31... g5 {[%clk 0:00:26.4]} 32. g4
{[%clk 0:00:12.3]} 32... Kg6 {[%clk 0:00:25.8]} 33. h3 {[%clk 0:00:11.5]} 33...
h5 {[%clk 0:00:25.1]} 34. Nf5 {[%clk 0:00:11.1]} 34... Ne5 {[%clk 0:00:19.4]}
35. Ng3 {[%clk 0:00:09.4]} 35... hxg4 {[%clk 0:00:19.5]} 36. hxg4 {[%clk
0:00:09.8]} 36... Nxg4 {[%clk 0:00:20.4]} 37. Kg1 {[%clk 0:00:08.1]} 37... f5
{[%clk 0:00:20]} 38. Nh1 {[%clk 0:00:08.5]} 38... f4 {[%clk 0:00:18.6]} 39. exf4
{[%clk 0:00:08.1]} 39... gxf4 {[%clk 0:00:19.5]} 40. Re1 {[%clk 0:00:08.1]}
40... Kf5 {[%clk 0:00:18.7]} 41. Rc1 {[%clk 0:00:06.6]} 41... Ne5 {[%clk
0:00:17.2]} 42. Rd1 {[%clk 0:00:05.3]} 42... Kg4 {[%clk 0:00:13.8]} 43. Rc1
{[%clk 0:00:03.1]} 43... Kf3 {[%clk 0:00:10.1]} 44. Rf1 {[%clk 0:00:03.2]} 44...
Rb7 {[%clk 0:00:09.3]} 45. Rc1 {[%clk 0:00:01.5]} 45... Nd3 {[%clk 0:00:08.7]}
0-1

[Event "Betsys MČR v online bleskovém šachu 2021"]
[Site "Chess.com"]
[Date "2021.04.17"]
[Round "5"]
[White "sajmon8"]
[Black "Petulak08"]
[Result "1-0"]
[WhiteElo "1596"]
[BlackElo "1217"]
[TimeControl "180+1"]
[EndTime "9:48:00 PDT"]
[Termination "Uživatel sajmon8 zvítězil na čas"]

1. e4 {[%clk 0:03:00.9]} 1... e5 {[%clk 0:02:58.8]} 2. Nf3 {[%clk 0:03:01]} 2...
Nf6 {[%clk 0:02:57.6]} 3. Nxe5 {[%clk 0:02:59.6]} 3... d6 {[%clk 0:02:57.9]} 4.
Nf3 {[%clk 0:02:58.9]} 4... Nxe4 {[%clk 0:02:58.1]} 5. Nc3 {[%clk 0:02:57.9]}
5... Bf5 {[%clk 0:02:54.3]} 6. Nxe4 {[%clk 0:02:55.1]} 6... Bxe4 {[%clk
0:02:54]} 7. Be2 {[%clk 0:02:54.8]} 7... Be7 {[%clk 0:02:53]} 8. O-O {[%clk
0:02:54.3]} 8... O-O {[%clk 0:02:52.3]} 9. Re1 {[%clk 0:02:53.5]} 9... Nc6
{[%clk 0:02:50.1]} 10. d3 {[%clk 0:02:52.4]} 10... Bd5 {[%clk 0:02:39.5]} 11.
Bd2 {[%clk 0:02:50.4]} 11... Qd7 {[%clk 0:02:37.9]} 12. Bc3 {[%clk 0:02:50]}
12... f6 {[%clk 0:02:19.2]} 13. Qd2 {[%clk 0:02:47.4]} 13... Ne5 {[%clk
0:02:17.3]} 14. Qe3 {[%clk 0:02:23.1]} 14... Qc6 {[%clk 0:02:09.3]} 15. Nxe5
{[%clk 0:02:07.7]} 15... fxe5 {[%clk 0:02:05.8]} 16. f3 {[%clk 0:02:02]} 16...
Bh4 {[%clk 0:01:59.8]} 17. Rf1 {[%clk 0:01:58.9]} 17... Rf5 {[%clk 0:01:44.2]}
18. Be1 {[%clk 0:01:57.5]} 18... Bg5 {[%clk 0:01:40]} 19. Qf2 {[%clk 0:01:54.7]}
19... Raf8 {[%clk 0:01:30.2]} 20. Qg3 {[%clk 0:01:52.8]} 20... Bf4 {[%clk
0:01:28]} 21. Qh3 {[%clk 0:01:45.5]} 21... Be3+ {[%clk 0:01:14.3]} 22. Bf2
{[%clk 0:01:42]} 22... Bg5 {[%clk 0:01:03.8]} 23. c3 {[%clk 0:01:34.9]} 23...
Be6 {[%clk 0:00:57.4]} 24. d4 {[%clk 0:01:12.9]} 24... e4 {[%clk 0:00:36.8]} 25.
fxe4 {[%clk 0:01:07.2]} 25... Qxe4 {[%clk 0:00:34.6]} 26. Bf3 {[%clk 0:01:03.8]}
26... Rxf3 {[%clk 0:00:30.9]} 27. gxf3 {[%clk 0:00:45.7]} 27... Bxh3 {[%clk
0:00:24.5]} 28. fxe4 {[%clk 0:00:43.9]} 28... Bxf1 {[%clk 0:00:23.5]} 29. Rxf1
{[%clk 0:00:37.9]} 29... Re8 {[%clk 0:00:11.7]} 30. Re1 {[%clk 0:00:35.1]} 30...
Bf4 {[%clk 0:00:10]} 31. Bg3 {[%clk 0:00:34]} 31... Bxg3 {[%clk 0:00:09.6]} 32.
hxg3 {[%clk 0:00:34.9]} 32... Kf7 {[%clk 0:00:09.3]} 33. Kf2 {[%clk 0:00:34.2]}
33... Kg6 {[%clk 0:00:09.7]} 34. Ke3 {[%clk 0:00:32.2]} 34... Kg5 {[%clk
0:00:09.3]} 35. Kf3 {[%clk 0:00:30.6]} 35... Rf8+ {[%clk 0:00:09]} 36. Kg2
{[%clk 0:00:30.2]} 36... Rf6 {[%clk 0:00:09.2]} 37. e5 {[%clk 0:00:29.4]} 37...
dxe5 {[%clk 0:00:08.8]} 38. Rxe5+ {[%clk 0:00:28.2]} 38... Kg6 {[%clk
0:00:06.2]} 39. Re7 {[%clk 0:00:27.7]} 39... Rf7 {[%clk 0:00:06.6]} 40. Re8
{[%clk 0:00:21.6]} 40... Kf6 {[%clk 0:00:05.5]} 41. Ra8 {[%clk 0:00:20.9]} 41...
a6 {[%clk 0:00:05.2]} 42. Ra7 {[%clk 0:00:20.1]} 42... c6 {[%clk 0:00:02.2]} 43.
Ra8 {[%clk 0:00:19.1]} 43... Re7 {[%clk 0:00:02.2]} 44. Rf8+ {[%clk 0:00:18.5]}
44... Rf7 {[%clk 0:00:02.6]} 45. Rh8 {[%clk 0:00:18]} 45... h6 {[%clk
0:00:02.7]} 46. Re8 {[%clk 0:00:17.4]} 46... Re7 {[%clk 0:00:02.7]} 47. Rf8+
{[%clk 0:00:16.8]} 47... Rf7 {[%clk 0:00:03.2]} 48. Rb8 {[%clk 0:00:17.2]} 48...
Kg5 {[%clk 0:00:02.3]} 49. Kh3 {[%clk 0:00:16.6]} 1-0

[Event "Betsys MČR v online bleskovém šachu 2021"]
[Site "Chess.com"]
[Date "2021.04.17"]
[Round "5"]
[White "dnovotny"]
[Black "JuliliaR"]
[Result "1-0"]
[WhiteElo "1761"]
[BlackElo "1303"]
[TimeControl "180+1"]
[EndTime "9:48:01 PDT"]
[Termination "Uživatel dnovotny zvítězil na čas"]

1. d4 {[%clk 0:02:59.8]} 1... d5 {[%clk 0:02:55.3]} 2. Nc3 {[%clk 0:02:59.9]}
2... Nf6 {[%clk 0:02:51.8]} 3. Bf4 {[%clk 0:02:59.9]} 3... c6 {[%clk 0:02:48.5]}
4. e3 {[%clk 0:02:55.3]} 4... Bf5 {[%clk 0:02:42.8]} 5. f3 {[%clk 0:02:54.6]}
5... e6 {[%clk 0:02:41.1]} 6. g4 {[%clk 0:02:54.4]} 6... Bg6 {[%clk 0:02:39.8]}
7. h4 {[%clk 0:02:52.8]} 7... h6 {[%clk 0:02:37.5]} 8. h5 {[%clk 0:02:44.8]}
8... Bh7 {[%clk 0:02:36.9]} 9. Bd3 {[%clk 0:02:41.6]} 9... Bxd3 {[%clk
0:02:33.1]} 10. Qxd3 {[%clk 0:02:42.5]} 10... Nbd7 {[%clk 0:02:32]} 11. Nge2
{[%clk 0:01:53.1]} 11... Be7 {[%clk 0:02:27.7]} 12. O-O-O {[%clk 0:01:49.2]}
12... Qb6 {[%clk 0:02:22]} 13. e4 {[%clk 0:01:46.8]} 13... O-O-O {[%clk
0:02:03.3]} 14. Kb1 {[%clk 0:01:04.3]} 14... dxe4 {[%clk 0:01:48.6]} 15. Nxe4
{[%clk 0:01:02]} 15... Nd5 {[%clk 0:01:44.6]} 16. Nd6+ {[%clk 0:00:53.7]} 16...
Bxd6 {[%clk 0:01:30.4]} 17. Bxd6 {[%clk 0:00:52.6]} 17... N7f6 {[%clk
0:01:27.2]} 18. Bc5 {[%clk 0:00:48.9]} 18... Qa5 {[%clk 0:01:21.1]} 19. c3
{[%clk 0:00:29.6]} 19... Nd7 {[%clk 0:01:05.2]} 20. Bd6 {[%clk 0:00:26.9]} 20...
Nb8 {[%clk 0:00:52.4]} 21. Bg3 {[%clk 0:00:19.7]} 21... Qa6 {[%clk 0:00:47.1]}
22. Qxa6 {[%clk 0:00:18.2]} 22... Nxa6 {[%clk 0:00:46.6]} 23. Nf4 {[%clk
0:00:17.3]} 23... Nac7 {[%clk 0:00:43.8]} 24. Rhe1 {[%clk 0:00:14.9]} 24... Nxf4
{[%clk 0:00:38.7]} 25. Bxf4 {[%clk 0:00:15.1]} 25... Nd5 {[%clk 0:00:38.4]} 26.
Bg3 {[%clk 0:00:15]} 26... Rd7 {[%clk 0:00:29.5]} 27. c4 {[%clk 0:00:15]} 27...
Nb6 {[%clk 0:00:23.2]} 28. b3 {[%clk 0:00:14.5]} 28... Rhd8 {[%clk 0:00:20.2]}
29. Kc2 {[%clk 0:00:14.9]} 29... a6 {[%clk 0:00:16.8]} 30. Kc3 {[%clk 0:00:12]}
30... Na8 {[%clk 0:00:16.1]} 31. Be5 {[%clk 0:00:10.3]} 31... Rg8 {[%clk
0:00:13.9]} 32. d5 {[%clk 0:00:09.3]} 32... cxd5 {[%clk 0:00:12.6]} 33. cxd5
{[%clk 0:00:09.4]} 33... Rxd5 {[%clk 0:00:11.4]} 34. Rxd5 {[%clk 0:00:08.2]}
34... exd5 {[%clk 0:00:09.7]} 35. Kd4 {[%clk 0:00:08.6]} 35... f6 {[%clk
0:00:09.6]} 36. Bd6 {[%clk 0:00:07.9]} 36... Nc7 {[%clk 0:00:05.9]} 37. Re7
{[%clk 0:00:05.5]} 37... Kd8 {[%clk 0:00:03.7]} 38. Rxc7 {[%clk 0:00:04]} 38...
Re8 {[%clk 0:00:02.4]} 39. Rxb7 {[%clk 0:00:04.3]} 39... Re1 {[%clk 0:00:01.5]}
40. Rb8+ {[%clk 0:00:04.2]} 1-0

[Event "Betsys MČR v online bleskovém šachu 2021"]
[Site "Chess.com"]
[Date "2021.04.17"]
[Round "5"]
[White "masterofbuzkashi"]
[Black "Richarlito"]
[Result "1-0"]
[WhiteElo "2258"]
[BlackElo "2022"]
[TimeControl "180+1"]
[EndTime "9:48:02 PDT"]
[Termination "Uživatel masterofbuzkashi zvítězil matem"]

1. d4 {[%clk 0:03:00.9]} 1... d5 {[%clk 0:02:58.8]} 2. c4 {[%clk 0:03:01.5]}
2... c6 {[%clk 0:02:57.4]} 3. Nc3 {[%clk 0:03:02.1]} 3... e6 {[%clk 0:02:57.2]}
4. Nf3 {[%clk 0:03:02.7]} 4... Nf6 {[%clk 0:02:57.5]} 5. Bf4 {[%clk 0:03:02.7]}
5... Nbd7 {[%clk 0:02:55]} 6. e3 {[%clk 0:03:02.2]} 6... Be7 {[%clk 0:02:55]} 7.
c5 {[%clk 0:03:02.5]} 7... O-O {[%clk 0:02:53.8]} 8. b4 {[%clk 0:03:02.5]} 8...
a5 {[%clk 0:02:48.3]} 9. b5 {[%clk 0:02:59.8]} 9... Re8 {[%clk 0:02:41.8]} 10.
b6 {[%clk 0:02:53.1]} 10... Bf8 {[%clk 0:02:41.7]} 11. Bc7 {[%clk 0:02:52]}
11... Qe7 {[%clk 0:02:41.6]} 12. Bd3 {[%clk 0:02:48.1]} 12... Nb8 {[%clk
0:02:07.6]} 13. O-O {[%clk 0:02:43.5]} 13... Na6 {[%clk 0:02:07.4]} 14. Bxa6
{[%clk 0:02:42.3]} 14... Rxa6 {[%clk 0:02:07.1]} 15. a4 {[%clk 0:02:38.8]} 15...
Nd7 {[%clk 0:01:53.2]} 16. Ne5 {[%clk 0:02:28.4]} 16... Nxe5 {[%clk 0:01:50.4]}
17. Bxe5 {[%clk 0:02:27.5]} 17... f6 {[%clk 0:01:47.8]} 18. Bc7 {[%clk
0:02:22.8]} 18... e5 {[%clk 0:01:43.6]} 19. Qf3 {[%clk 0:02:20.2]} 19... e4
{[%clk 0:01:32.4]} 20. Qg3 {[%clk 0:02:14.1]} 20... Qe6 {[%clk 0:01:29.3]} 21.
h3 {[%clk 0:02:08.6]} 21... Ra8 {[%clk 0:01:29]} 22. Ne2 {[%clk 0:01:55.8]}
22... Qf7 {[%clk 0:01:21]} 23. Nc1 {[%clk 0:01:54.5]} 23... f5 {[%clk
0:01:14.1]} 24. Nb3 {[%clk 0:01:54]} 24... Re6 {[%clk 0:01:13.2]} 25. f4 {[%clk
0:01:51.1]} 25... Rg6 {[%clk 0:01:08.8]} 26. Qf2 {[%clk 0:01:46.2]} 26... Be7
{[%clk 0:01:08.4]} 27. Kh2 {[%clk 0:01:45.1]} 27... Rh6 {[%clk 0:00:52.5]} 28.
g3 {[%clk 0:01:39.4]} 28... Qh5 {[%clk 0:00:51.1]} 29. Qg2 {[%clk 0:01:39.2]}
29... Qg4 {[%clk 0:00:40.3]} 30. Ra2 {[%clk 0:01:27.4]} 30... g5 {[%clk
0:00:35.3]} 31. Raf2 {[%clk 0:01:23.9]} 31... Be6 {[%clk 0:00:31.7]} 32. fxg5
{[%clk 0:01:13.2]} 32... Bxg5 {[%clk 0:00:30]} 33. Bf4 {[%clk 0:01:12.3]} 33...
Bxf4 {[%clk 0:00:27.4]} 34. Rxf4 {[%clk 0:01:11.7]} 34... Qg6 {[%clk 0:00:27.3]}
35. Kg1 {[%clk 0:00:59.1]} 35... Rh5 {[%clk 0:00:26.7]} 36. Kf2 {[%clk
0:00:57.6]} 36... Rg5 {[%clk 0:00:27]} 37. Rg1 {[%clk 0:00:57.1]} 37... h5
{[%clk 0:00:19.6]} 38. Ke2 {[%clk 0:00:50.3]} 38... Kf7 {[%clk 0:00:13.5]} 39.
Kd2 {[%clk 0:00:48.9]} 39... Ke7 {[%clk 0:00:13.8]} 40. Kc3 {[%clk 0:00:49.1]}
40... Kd7 {[%clk 0:00:14.1]} 41. Kb2 {[%clk 0:00:40.3]} 41... Rg8 {[%clk
0:00:14]} 42. Qd2 {[%clk 0:00:26.1]} 42... Rxg3 {[%clk 0:00:13.7]} 43. Rxg3
{[%clk 0:00:23.4]} 43... Qxg3 {[%clk 0:00:13.9]} 44. Qxa5 {[%clk 0:00:23.2]}
44... Qxh3 {[%clk 0:00:13.2]} 45. Qa7 {[%clk 0:00:20.8]} 45... Rg2+ {[%clk
0:00:11.4]} 46. Ka3 {[%clk 0:00:20]} 46... Qxe3 {[%clk 0:00:11]} 47. Qxb7+
{[%clk 0:00:19.1]} 47... Ke8 {[%clk 0:00:11.4]} 48. Qb8+ {[%clk 0:00:17.4]}
48... Kf7 {[%clk 0:00:11.5]} 49. Qc7+ {[%clk 0:00:17]} 49... Kf6 {[%clk
0:00:11.9]} 50. Qe5+ {[%clk 0:00:16.5]} 50... Ke7 {[%clk 0:00:12.1]} 51. Rxf5
{[%clk 0:00:14.9]} 51... Rg3 {[%clk 0:00:12.2]} 52. Qd6+ {[%clk 0:00:14.5]}
52... Ke8 {[%clk 0:00:09.3]} 53. Rf8# {[%clk 0:00:14.5]} 1-0

[Event "Betsys MČR v online bleskovém šachu 2021"]
[Site "Chess.com"]
[Date "2021.04.17"]
[Round "5"]
[White "Bartusman"]
[Black "Emicka1330"]
[Result "1-0"]
[WhiteElo "1970"]
[BlackElo "1644"]
[TimeControl "180+1"]
[EndTime "9:48:02 PDT"]
[Termination "Uživatel Bartusman zvítězil na čas"]

1. e4 {[%clk 0:03:00.9]} 1... d5 {[%clk 0:02:58.9]} 2. exd5 {[%clk 0:03:00]}
2... Nf6 {[%clk 0:02:58.2]} 3. Bc4 {[%clk 0:02:58.4]} 3... Nxd5 {[%clk
0:02:55.5]} 4. d3 {[%clk 0:02:56.7]} 4... g6 {[%clk 0:02:54]} 5. Nc3 {[%clk
0:02:55.7]} 5... c6 {[%clk 0:02:52.9]} 6. h4 {[%clk 0:02:51.7]} 6... Bg7 {[%clk
0:02:51.9]} 7. Bd2 {[%clk 0:02:50.4]} 7... O-O {[%clk 0:02:50.1]} 8. Qe2 {[%clk
0:02:50.4]} 8... e5 {[%clk 0:02:46]} 9. h5 {[%clk 0:02:50.2]} 9... Bf5 {[%clk
0:02:41]} 10. g4 {[%clk 0:02:40.5]} 10... Be6 {[%clk 0:02:39.7]} 11. Ne4 {[%clk
0:02:28.7]} 11... b5 {[%clk 0:02:35.9]} 12. Bb3 {[%clk 0:02:10.8]} 12... a5
{[%clk 0:02:35.2]} 13. a4 {[%clk 0:02:11]} 13... Na6 {[%clk 0:02:19.8]} 14. Ng5
{[%clk 0:02:09]} 14... Qd7 {[%clk 0:02:11.7]} 15. hxg6 {[%clk 0:02:05.4]} 15...
hxg6 {[%clk 0:02:04]} 16. f3 {[%clk 0:01:41.4]} 16... Nc5 {[%clk 0:02:00.4]} 17.
Qh2 {[%clk 0:01:41]} 17... Rfd8 {[%clk 0:01:27.5]} 18. Ne4 {[%clk 0:01:25.6]}
18... Nxe4 {[%clk 0:01:23.5]} 19. dxe4 {[%clk 0:01:15.9]} 19... Nb4 {[%clk
0:01:00]} 20. Bxe6 {[%clk 0:01:06.7]} 20... Qxe6 {[%clk 0:00:51.1]} 21. Bg5
{[%clk 0:00:50.6]} 21... f6 {[%clk 0:00:43.4]} 22. Be3 {[%clk 0:00:26.3]} 22...
Qc4 {[%clk 0:00:34.9]} 23. Rc1 {[%clk 0:00:20.4]} 23... Na2 {[%clk 0:00:26.2]}
24. Rb1 {[%clk 0:00:16.9]} 24... Qxa4 {[%clk 0:00:18]} 25. Nh3 {[%clk
0:00:11.8]} 25... Nb4 {[%clk 0:00:15.4]} 26. Rc1 {[%clk 0:00:12]} 26... Qa2
{[%clk 0:00:13.9]} 27. Nf2 {[%clk 0:00:07.9]} 27... Qxb2 {[%clk 0:00:13.2]} 28.
Nd1 {[%clk 0:00:06.3]} 28... Qa3 {[%clk 0:00:11.5]} 29. Qh7+ {[%clk 0:00:05.7]}
29... Kf7 {[%clk 0:00:11]} 30. Bh6 {[%clk 0:00:06.3]} 30... Rg8 {[%clk 0:00:08]}
31. Ne3 {[%clk 0:00:03]} 31... Qc3+ {[%clk 0:00:05.4]} 32. Kf2 {[%clk
0:00:02.7]} 32... Qd2+ {[%clk 0:00:05]} 33. Kg3 {[%clk 0:00:03]} 33... Qe2
{[%clk 0:00:04.4]} 34. Nf5 {[%clk 0:00:03]} 34... gxf5 {[%clk 0:00:03.3]} 35.
Bxg7 {[%clk 0:00:03.4]} 35... Qe3 {[%clk 0:00:02.6]} 36. Qxf5 {[%clk 0:00:04.1]}
36... Qf4+ {[%clk 0:00:01.5]} 37. Qxf4 {[%clk 0:00:04.1]} 37... exf4+ {[%clk
0:00:01.5]} 38. Kxf4 {[%clk 0:00:05]} 38... Rxg7 {[%clk 0:00:01.9]} 39. Rhd1
{[%clk 0:00:05]} 39... Rgg8 {[%clk 0:00:01.2]} 40. c3 {[%clk 0:00:05.5]} 40...
Rgd8 {[%clk 0:00:01.5]} 41. cxb4 {[%clk 0:00:05.3]} 41... axb4 {[%clk
0:00:01.6]} 42. Rxd8 {[%clk 0:00:04.8]} 42... Rxd8 {[%clk 0:00:01.5]} 43. Rxc6
{[%clk 0:00:05.6]} 1-0